[Event "*** SCC Grand Prix: Titled Tuesday Blitz"]
[Site "Chess.com"]
[Date "2020.06.09"]
[Round "8"]
[White "thedjoker98"]
[Black "pooh2012"]
[Result "0-1"]
[WhiteElo "2527"]
[BlackElo "2431"]
[TimeControl "180+1"]
[EndTime "10:35:40 PDT"]
[Termination "pooh2012 won by resignation"]

1. d4 {[%clk 0:02:55.2]} 1... Nf6 {[%clk 0:02:57.5]} 2. c4 {[%clk 0:02:55.4]}
2... e6 {[%clk 0:02:57.3]} 3. Nc3 {[%clk 0:02:55.8]} 3... Bb4 {[%clk 0:02:57.3]}
4. g3 {[%clk 0:02:56.2]} 4... O-O {[%clk 0:02:54.3]} 5. Bg2 {[%clk 0:02:56.5]}
5... d5 {[%clk 0:02:54.8]} 6. Nf3 {[%clk 0:02:56.8]} 6... Nc6 {[%clk 0:02:31.3]}
7. O-O {[%clk 0:02:55.2]} 7... dxc4 {[%clk 0:02:30.7]} 8. Qa4 {[%clk 0:02:54.9]}
8... a6 {[%clk 0:02:17.3]} 9. Ne5 {[%clk 0:02:47.9]} 9... Nxe5 {[%clk
0:01:50.5]} 10. Qxb4 {[%clk 0:02:35]} 10... Qxd4 {[%clk 0:01:24.4]} 11. Be3
{[%clk 0:02:35.1]} 11... Qg4 {[%clk 0:01:07.8]} 12. h3 {[%clk 0:02:29.5]} 12...
Qg6 {[%clk 0:01:04.7]} 13. Bf4 {[%clk 0:02:19.3]} 13... Nfd7 {[%clk 0:00:53.5]}
14. Rad1 {[%clk 0:02:17.8]} 14... c5 {[%clk 0:00:44.3]} 15. Qa4 {[%clk
0:02:10.2]} 15... Rb8 {[%clk 0:00:38.3]} 16. Ne4 {[%clk 0:01:46.6]} 16... b5
{[%clk 0:00:35.7]} 17. Qa5 {[%clk 0:01:46.7]} 17... Bb7 {[%clk 0:00:30.3]} 18.
Rxd7 {[%clk 0:01:36.5]} 18... Nxd7 {[%clk 0:00:28.7]} 19. Bxb8 {[%clk
0:01:37.4]} 19... Bxe4 {[%clk 0:00:26.1]} 20. Bd6 {[%clk 0:01:33.5]} 20... Bxg2
{[%clk 0:00:26]} 21. Kxg2 {[%clk 0:01:34.4]} 21... Qe4+ {[%clk 0:00:26.2]} 22.
Kg1 {[%clk 0:01:32.5]} 22... Rc8 {[%clk 0:00:21.9]} 23. Rd1 {[%clk 0:01:30.5]}
23... Qc6 {[%clk 0:00:21.8]} 24. Be7 {[%clk 0:01:28.8]} 24... Qb7 {[%clk
0:00:13.8]} 25. Qd2 {[%clk 0:01:25.6]} 25... Nf8 {[%clk 0:00:10.4]} 26. Qd6
{[%clk 0:01:20.5]} 26... h6 {[%clk 0:00:08.1]} 27. Bxf8 {[%clk 0:01:19.9]} 27...
Rxf8 {[%clk 0:00:08.6]} 28. Qxc5 {[%clk 0:01:20.1]} 28... Qe4 {[%clk 0:00:08.6]}
29. Rd2 {[%clk 0:01:18.5]} 29... Qb1+ {[%clk 0:00:08.6]} 30. Kg2 {[%clk
0:01:18.3]} 30... Qxa2 {[%clk 0:00:09.3]} 31. g4 {[%clk 0:01:16.7]} 31... Qb3
{[%clk 0:00:09.3]} 32. g5 {[%clk 0:01:15.5]} 32... hxg5 {[%clk 0:00:10.2]} 33.
Qxg5 {[%clk 0:01:15.3]} 33... c3 {[%clk 0:00:10.8]} 34. bxc3 {[%clk 0:01:13.6]}
34... Qxc3 {[%clk 0:00:11.7]} 35. Rd3 {[%clk 0:01:14.5]} 35... Qc6+ {[%clk
0:00:11.6]} 36. Kh2 {[%clk 0:01:14.3]} 36... Qc7+ {[%clk 0:00:10.8]} 37. Rg3
{[%clk 0:01:14]} 37... f6 {[%clk 0:00:10.4]} 38. Qg4 {[%clk 0:01:09.4]} 38...
Qf7 {[%clk 0:00:10.1]} 39. Rc3 {[%clk 0:01:08.9]} 39... Rd8 {[%clk 0:00:09.3]}
40. Qg3 {[%clk 0:01:06.8]} 40... e5 {[%clk 0:00:07.1]} 41. Rc6 {[%clk
0:01:04.9]} 41... a5 {[%clk 0:00:06]} 42. Ra6 {[%clk 0:01:04.8]} 42... a4 {[%clk
0:00:06.5]} 43. Ra5 {[%clk 0:01:02]} 43... Qc4 {[%clk 0:00:06.2]} 44. Ra7 {[%clk
0:01:00.1]} 44... Qf4 {[%clk 0:00:06.3]} 45. Rxg7+ {[%clk 0:01:00.1]} 45... Kf8
{[%clk 0:00:06.9]} 46. Rg8+ {[%clk 0:00:56.2]} 46... Ke7 {[%clk 0:00:06.7]} 47.
Rg7+ {[%clk 0:00:56.7]} 47... Ke6 {[%clk 0:00:07.2]} 48. Rb7 {[%clk 0:00:56.1]}
48... Qxg3+ {[%clk 0:00:07]} 49. Kxg3 {[%clk 0:00:57]} 49... Rd5 {[%clk
0:00:07.4]} 50. Ra7 {[%clk 0:00:54.6]} 50... Rd4 {[%clk 0:00:06.4]} 51. e3
{[%clk 0:00:52.3]} 51... Rb4 {[%clk 0:00:06.2]} 52. h4 {[%clk 0:00:53.2]} 52...
Kf5 {[%clk 0:00:06.3]} 53. Rg7 {[%clk 0:00:48.5]} 53... a3 {[%clk 0:00:06]} 54.
h5 {[%clk 0:00:48.7]} 54... a2 {[%clk 0:00:06.1]} 55. Ra7 {[%clk 0:00:49]} 55...
Ra4 {[%clk 0:00:06.6]} 56. e4+ {[%clk 0:00:48.9]} 56... Kxe4 {[%clk 0:00:06.3]}
57. Rxa4+ {[%clk 0:00:48.2]} 57... bxa4 {[%clk 0:00:06.3]} 0-1

[Event "*** SCC Grand Prix: Titled Tuesday Blitz"]
[Site "Chess.com"]
[Date "2020.06.09"]
[Round "8"]
[White "NateSolon"]
[Black "Gabrielian_Artur"]
[Result "0-1"]
[WhiteElo "2541"]
[BlackElo "2752"]
[TimeControl "180+1"]
[EndTime "10:35:41 PDT"]
[Termination "Gabrielian_Artur won on time"]

1. d4 {[%clk 0:03:00.9]} 1... Nf6 {[%clk 0:02:59.6]} 2. Bf4 {[%clk 0:03:00.6]}
2... g6 {[%clk 0:02:57.9]} 3. Nc3 {[%clk 0:03:00.2]} 3... d5 {[%clk 0:02:57.7]}
4. e3 {[%clk 0:03:00.2]} 4... Bg7 {[%clk 0:02:57.5]} 5. h4 {[%clk 0:02:59.9]}
5... h5 {[%clk 0:02:56.8]} 6. Nf3 {[%clk 0:02:59.7]} 6... O-O {[%clk 0:02:56.3]}
7. Ne5 {[%clk 0:02:59.5]} 7... c5 {[%clk 0:02:56.1]} 8. Qd2 {[%clk 0:02:58.9]}
8... cxd4 {[%clk 0:02:55.7]} 9. exd4 {[%clk 0:02:58.9]} 9... Nc6 {[%clk
0:02:55.6]} 10. O-O-O {[%clk 0:02:55.4]} 10... Bf5 {[%clk 0:02:54.4]} 11. Kb1
{[%clk 0:02:27.7]} 11... Rc8 {[%clk 0:02:47]} 12. Bb5 {[%clk 0:02:10.5]} 12...
Nb4 {[%clk 0:02:40]} 13. Rc1 {[%clk 0:02:00.4]} 13... Qa5 {[%clk 0:02:12.9]} 14.
a3 {[%clk 0:01:45.9]} 14... Nxc2 {[%clk 0:01:26.6]} 15. Rxc2 {[%clk 0:01:35.1]}
15... Rxc3 {[%clk 0:01:22.2]} 16. Bd3 {[%clk 0:01:30.3]} 16... Bxd3 {[%clk
0:00:43.8]} 17. Nxd3 {[%clk 0:01:27.6]} 17... Ne4 {[%clk 0:00:43.9]} 18. Qe1
{[%clk 0:01:25]} 18... Rfc8 {[%clk 0:00:43.1]} 19. bxc3 {[%clk 0:01:13.4]} 19...
Nxc3+ {[%clk 0:00:40.4]} 20. Rxc3 {[%clk 0:00:57.2]} 20... Rxc3 {[%clk
0:00:39.7]} 21. Nb2 {[%clk 0:00:36.5]} 21... Qxa3 {[%clk 0:00:38.9]} 22. Rh3
{[%clk 0:00:24.2]} 22... Rxh3 {[%clk 0:00:32.3]} 23. gxh3 {[%clk 0:00:25.1]}
23... Bxd4 {[%clk 0:00:32]} 24. Qd2 {[%clk 0:00:20.6]} 24... Bg7 {[%clk
0:00:20]} 25. Be3 {[%clk 0:00:18.1]} 25... e6 {[%clk 0:00:17.7]} 26. Bd4 {[%clk
0:00:17.6]} 26... Qxh3 {[%clk 0:00:17.6]} 27. Bxg7 {[%clk 0:00:17.2]} 27... Kxg7
{[%clk 0:00:18.5]} 28. Qd4+ {[%clk 0:00:16.6]} 28... Kg8 {[%clk 0:00:18.9]} 29.
Nd3 {[%clk 0:00:16.2]} 29... Qf5 {[%clk 0:00:18.5]} 30. Kb2 {[%clk 0:00:15.5]}
30... b6 {[%clk 0:00:19.1]} 31. Ne5 {[%clk 0:00:13.6]} 31... Qf6 {[%clk
0:00:16.4]} 32. Qc3 {[%clk 0:00:10.4]} 32... Qxf2+ {[%clk 0:00:15.6]} 33. Kb3
{[%clk 0:00:10]} 33... Qxh4 {[%clk 0:00:15.3]} 34. Nd7 {[%clk 0:00:08.2]} 34...
d4 {[%clk 0:00:14]} 35. Qc8+ {[%clk 0:00:07.5]} 35... Kh7 {[%clk 0:00:14.2]} 36.
Qf8 {[%clk 0:00:04]} 36... Qf4 {[%clk 0:00:13.3]} 37. Qe7 {[%clk 0:00:02.5]}
37... Kg7 {[%clk 0:00:12.9]} 38. Qd8 {[%clk 0:00:01.4]} 38... Kh6 {[%clk
0:00:12.1]} 0-1

[Event "*** SCC Grand Prix: Titled Tuesday Blitz"]
[Site "Chess.com"]
[Date "2020.06.09"]
[Round "8"]
[White "MomchilPetkov"]
[Black "lucachess49"]
[Result "1-0"]
[WhiteElo "2546"]
[BlackElo "2358"]
[TimeControl "180+1"]
[EndTime "10:35:41 PDT"]
[Termination "MomchilPetkov won by checkmate"]

1. d4 {[%clk 0:03:00.9]} 1... Nf6 {[%clk 0:02:59.6]} 2. c4 {[%clk 0:03:00.5]}
2... e6 {[%clk 0:02:59.6]} 3. Nc3 {[%clk 0:03:00.8]} 3... Bb4 {[%clk 0:02:58.1]}
4. Bd2 {[%clk 0:03:01.3]} 4... O-O {[%clk 0:02:57.9]} 5. Nf3 {[%clk 0:03:01.7]}
5... d6 {[%clk 0:02:51]} 6. e3 {[%clk 0:02:52.4]} 6... Nbd7 {[%clk 0:02:35.9]}
7. a3 {[%clk 0:02:48.9]} 7... Bxc3 {[%clk 0:02:35.3]} 8. Bxc3 {[%clk 0:02:49.8]}
8... Ne4 {[%clk 0:02:35.5]} 9. Qc2 {[%clk 0:02:48.4]} 9... Nxc3 {[%clk
0:02:35.3]} 10. Qxc3 {[%clk 0:02:49.3]} 10... Nf6 {[%clk 0:02:35]} 11. Bd3
{[%clk 0:02:47.8]} 11... b6 {[%clk 0:02:34.8]} 12. e4 {[%clk 0:02:43]} 12... Bb7
{[%clk 0:02:27.8]} 13. d5 {[%clk 0:02:35.6]} 13... exd5 {[%clk 0:02:23.2]} 14.
exd5 {[%clk 0:02:29.5]} 14... Re8+ {[%clk 0:02:23.1]} 15. Kf1 {[%clk 0:02:29.9]}
15... Qd7 {[%clk 0:02:12.1]} 16. Nd4 {[%clk 0:02:16.4]} 16... Qg4 {[%clk
0:02:00.8]} 17. h3 {[%clk 0:02:09.3]} 17... Qf4 {[%clk 0:01:48.5]} 18. g3 {[%clk
0:02:03.9]} 18... Qg5 {[%clk 0:01:43.5]} 19. f4 {[%clk 0:01:39.7]} 19... Qh5
{[%clk 0:01:29]} 20. g4 {[%clk 0:01:00.5]} 20... Nxg4 {[%clk 0:00:49.4]} 21. Be2
{[%clk 0:00:59.2]} 21... f5 {[%clk 0:00:42.9]} 22. Kg1 {[%clk 0:00:51.3]} 22...
Rxe2 {[%clk 0:00:28.1]} 23. Nxe2 {[%clk 0:00:48.5]} 23... Nf6 {[%clk 0:00:28.4]}
24. Ng3 {[%clk 0:00:46]} 24... Qg6 {[%clk 0:00:24.5]} 25. Kh2 {[%clk 0:00:41.7]}
25... Re8 {[%clk 0:00:21.4]} 26. Rae1 {[%clk 0:00:41.4]} 26... Ne4 {[%clk
0:00:18.5]} 27. Nxe4 {[%clk 0:00:39.4]} 27... fxe4 {[%clk 0:00:19]} 28. Rhg1
{[%clk 0:00:39.3]} 28... Qf7 {[%clk 0:00:19]} 29. Rg3 {[%clk 0:00:35.7]} 29...
Bc8 {[%clk 0:00:18.5]} 30. Rxg7+ {[%clk 0:00:21.4]} 30... Qxg7 {[%clk
0:00:15.7]} 31. Rg1 {[%clk 0:00:22.3]} 31... Re7 {[%clk 0:00:15.5]} 32. Qf6
{[%clk 0:00:16.4]} 32... Qxg1+ {[%clk 0:00:12.6]} 33. Kxg1 {[%clk 0:00:17.3]}
33... Rf7 {[%clk 0:00:13.2]} 34. Qd8+ {[%clk 0:00:16.8]} 34... Rf8 {[%clk
0:00:13.9]} 35. Qg5+ {[%clk 0:00:17.3]} 35... Kh8 {[%clk 0:00:13.2]} 36. Qe7
{[%clk 0:00:17.4]} 36... Rg8+ {[%clk 0:00:12.9]} 37. Kf2 {[%clk 0:00:16.9]}
37... Bxh3 {[%clk 0:00:12.2]} 38. Qf6+ {[%clk 0:00:17.1]} 38... Rg7 {[%clk
0:00:12.6]} 39. Qf8+ {[%clk 0:00:17.6]} 39... Rg8 {[%clk 0:00:12.5]} 40. Qf6+
{[%clk 0:00:18.5]} 40... Rg7 {[%clk 0:00:13]} 41. Ke3 {[%clk 0:00:19]} 41... h5
{[%clk 0:00:12.1]} 42. Qh6+ {[%clk 0:00:17.5]} 42... Rh7 {[%clk 0:00:11.5]} 43.
Qf8# {[%clk 0:00:17.3]} 1-0

[Event "*** SCC Grand Prix: Titled Tuesday Blitz"]
[Site "Chess.com"]
[Date "2020.06.09"]
[Round "8"]
[White "Gerodot71"]
[Black "IriBu"]
[Result "0-1"]
[WhiteElo "2397"]
[BlackElo "2533"]
[TimeControl "180+1"]
[EndTime "10:35:41 PDT"]
[Termination "IriBu won by resignation"]

1. d4 {[%clk 0:03:00.6]} 1... Nf6 {[%clk 0:02:58.4]} 2. c4 {[%clk 0:03:00.9]}
2... g6 {[%clk 0:02:56.8]} 3. Nc3 {[%clk 0:03:00.7]} 3... Bg7 {[%clk 0:02:56]}
4. e4 {[%clk 0:03:00.8]} 4... d6 {[%clk 0:02:56.2]} 5. Be2 {[%clk 0:03:01.2]}
5... O-O {[%clk 0:02:56.2]} 6. Be3 {[%clk 0:03:01.7]} 6... c5 {[%clk 0:02:51.6]}
7. dxc5 {[%clk 0:03:00.2]} 7... dxc5 {[%clk 0:02:51.5]} 8. e5 {[%clk 0:02:53.5]}
8... Nfd7 {[%clk 0:02:47.5]} 9. f4 {[%clk 0:02:52.8]} 9... Nc6 {[%clk
0:02:41.1]} 10. Nf3 {[%clk 0:02:52]} 10... f6 {[%clk 0:02:31.4]} 11. exf6 {[%clk
0:02:44.8]} 11... exf6 {[%clk 0:02:26.5]} 12. O-O {[%clk 0:02:44.9]} 12... Kh8
{[%clk 0:02:22]} 13. Qd2 {[%clk 0:02:37.3]} 13... Re8 {[%clk 0:02:06.1]} 14. Bf2
{[%clk 0:02:35.2]} 14... Qe7 {[%clk 0:01:50.1]} 15. Nd5 {[%clk 0:02:33.1]} 15...
Qxe2 {[%clk 0:01:48.5]} 16. Qc1 {[%clk 0:02:26.1]} 16... Rf8 {[%clk 0:01:24.9]}
17. Re1 {[%clk 0:01:38.7]} 17... Qd3 {[%clk 0:01:24.4]} 18. Nh4 {[%clk
0:01:39.1]} 18... Nd4 {[%clk 0:00:52.6]} 19. Bxd4 {[%clk 0:01:29.5]} 19... Qxd4+
{[%clk 0:00:52.4]} 20. Kh1 {[%clk 0:01:30]} 20... Nb6 {[%clk 0:00:51.2]} 21.
Nxb6 {[%clk 0:00:49.9]} 21... axb6 {[%clk 0:00:50.8]} 22. Rd1 {[%clk 0:00:45.3]}
22... Qe4 {[%clk 0:00:48.6]} 23. Re1 {[%clk 0:00:44.9]} 23... Qc6 {[%clk
0:00:48.3]} 24. Qc3 {[%clk 0:00:45.3]} 24... f5 {[%clk 0:00:47.7]} 25. Qh3
{[%clk 0:00:45.7]} 25... Kg8 {[%clk 0:00:46.2]} 26. Re7 {[%clk 0:00:46.2]} 26...
Be6 {[%clk 0:00:39.1]} 27. Re1 {[%clk 0:00:42.2]} 27... Bxc4 {[%clk 0:00:39]}
28. Rxg7+ {[%clk 0:00:34.7]} 28... Kxg7 {[%clk 0:00:38.8]} 29. Qc3+ {[%clk
0:00:35.6]} 29... Qf6 {[%clk 0:00:36.9]} 30. Re7+ {[%clk 0:00:32.4]} 30... Rf7
{[%clk 0:00:33.7]} 31. Rxf7+ {[%clk 0:00:27.7]} 31... Bxf7 {[%clk 0:00:33.1]}
32. Qg3 {[%clk 0:00:26.3]} 32... Rd8 {[%clk 0:00:32.2]} 33. h3 {[%clk
0:00:27.2]} 33... Rd2 {[%clk 0:00:30.2]} 34. Nf3 {[%clk 0:00:26.6]} 34... Rd1+
{[%clk 0:00:28.9]} 35. Kh2 {[%clk 0:00:26.3]} 35... Qxb2 {[%clk 0:00:27]} 36.
Qg5 {[%clk 0:00:23.9]} 36... Qf6 {[%clk 0:00:22.2]} 37. Qg3 {[%clk 0:00:24.4]}
37... Bd5 {[%clk 0:00:19]} 38. Ne5 {[%clk 0:00:24.1]} 38... Rd2 {[%clk
0:00:18.7]} 39. Nf3 {[%clk 0:00:16.3]} 39... Bxf3 {[%clk 0:00:18.9]} 40. Qxf3
{[%clk 0:00:17.2]} 40... Rd7 {[%clk 0:00:16.7]} 41. Kg3 {[%clk 0:00:16.2]} 41...
c4 {[%clk 0:00:16.9]} 42. h4 {[%clk 0:00:15.1]} 42... Rd3 {[%clk 0:00:16.6]} 0-1

[Event "*** SCC Grand Prix: Titled Tuesday Blitz"]
[Site "Chess.com"]
[Date "2020.06.09"]
[Round "8"]
[White "mattcolins2025"]
[Black "Morshynska"]
[Result "1-0"]
[WhiteElo "2387"]
[BlackElo "2219"]
[TimeControl "180+1"]
[EndTime "10:35:42 PDT"]
[Termination "mattcolins2025 won by resignation"]

1. d4 {[%clk 0:03:00.9]} 1... Nf6 {[%clk 0:02:58.7]} 2. c4 {[%clk 0:03:01.5]}
2... g6 {[%clk 0:02:58.4]} 3. Nc3 {[%clk 0:03:02]} 3... d5 {[%clk 0:02:57.3]} 4.
cxd5 {[%clk 0:03:02.9]} 4... Nxd5 {[%clk 0:02:58.1]} 5. e4 {[%clk 0:03:03.6]}
5... Nxc3 {[%clk 0:02:58]} 6. bxc3 {[%clk 0:03:04.5]} 6... Bg7 {[%clk
0:02:58.6]} 7. Nf3 {[%clk 0:03:03]} 7... O-O {[%clk 0:02:55.8]} 8. Bd3 {[%clk
0:03:02.5]} 8... c5 {[%clk 0:02:55.8]} 9. Be3 {[%clk 0:03:00.8]} 9... Qa5 {[%clk
0:02:50]} 10. O-O {[%clk 0:02:59.4]} 10... Rd8 {[%clk 0:02:36]} 11. Bd2 {[%clk
0:02:55.2]} 11... Qc7 {[%clk 0:02:25.7]} 12. Rc1 {[%clk 0:02:53.2]} 12... Nc6
{[%clk 0:02:17.9]} 13. d5 {[%clk 0:02:43.9]} 13... Bg4 {[%clk 0:01:53.1]} 14.
Be2 {[%clk 0:02:41.2]} 14... Na5 {[%clk 0:01:33.1]} 15. c4 {[%clk 0:02:36.3]}
15... b6 {[%clk 0:01:29.1]} 16. h3 {[%clk 0:02:36.4]} 16... Bxf3 {[%clk
0:01:18.4]} 17. Bxf3 {[%clk 0:02:36.2]} 17... Bd4 {[%clk 0:01:11.2]} 18. Qe2
{[%clk 0:02:30.5]} 18... e5 {[%clk 0:01:05.1]} 19. Bg5 {[%clk 0:02:14.8]} 19...
Re8 {[%clk 0:01:01.9]} 20. Bf6 {[%clk 0:02:13.3]} 20... Qd6 {[%clk 0:00:59.1]}
21. Bg5 {[%clk 0:02:13.6]} 21... f6 {[%clk 0:00:57.3]} 22. Bh6 {[%clk
0:02:10.8]} 22... Re7 {[%clk 0:00:50.5]} 23. Bg4 {[%clk 0:02:08.4]} 23... Kh8
{[%clk 0:00:48.3]} 24. Be6 {[%clk 0:02:08]} 24... Rxe6 {[%clk 0:00:40.1]} 25.
dxe6 {[%clk 0:02:06.7]} 25... Qxe6 {[%clk 0:00:41]} 26. Qg4 {[%clk 0:02:06.6]}
26... f5 {[%clk 0:00:34.7]} 27. exf5 {[%clk 0:02:06.4]} 27... gxf5 {[%clk
0:00:35.6]} 28. Qh4 {[%clk 0:02:05.7]} 28... Rg8 {[%clk 0:00:32.4]} 29. Kh1
{[%clk 0:02:03.4]} 29... e4 {[%clk 0:00:30]} 30. Be3 {[%clk 0:01:53.1]} 30...
Nxc4 {[%clk 0:00:28.5]} 31. Bxd4+ {[%clk 0:01:46.9]} 31... cxd4 {[%clk
0:00:29.4]} 32. Rfd1 {[%clk 0:01:45.2]} 32... d3 {[%clk 0:00:27.7]} 33. Qf4
{[%clk 0:01:08.7]} 33... b5 {[%clk 0:00:24.2]} 34. Rb1 {[%clk 0:01:03.9]} 34...
a6 {[%clk 0:00:23.8]} 35. Re1 {[%clk 0:00:57]} 35... Qg6 {[%clk 0:00:23.1]} 36.
g3 {[%clk 0:00:54.2]} 36... d2 {[%clk 0:00:20.5]} 37. Red1 {[%clk 0:00:53.1]}
37... Qe6 {[%clk 0:00:19]} 38. Rb3 {[%clk 0:00:48.6]} 38... Qd5 {[%clk
0:00:18.5]} 39. Kg1 {[%clk 0:00:45.9]} 39... a5 {[%clk 0:00:16.1]} 40. Rc3
{[%clk 0:00:36.9]} 40... Rd8 {[%clk 0:00:13.1]} 41. Rc2 {[%clk 0:00:34.8]} 41...
b4 {[%clk 0:00:11.5]} 42. Qg5 {[%clk 0:00:32.9]} 42... Rc8 {[%clk 0:00:07.6]}
43. Qf6+ {[%clk 0:00:32.5]} 43... Kg8 {[%clk 0:00:07]} 44. Rdxd2 {[%clk
0:00:30.8]} 44... Nxd2 {[%clk 0:00:07.9]} 45. Rxc8+ {[%clk 0:00:30.6]} 1-0

[Event "*** SCC Grand Prix: Titled Tuesday Blitz"]
[Site "Chess.com"]
[Date "2020.06.09"]
[Round "8"]
[White "Borsuk_Konstantin"]
[Black "temus_galaktionov"]
[Result "0-1"]
[WhiteElo "2567"]
[BlackElo "2721"]
[TimeControl "180+1"]
[EndTime "10:35:49 PDT"]
[Termination "temus_galaktionov won on time"]

1. d4 {[%clk 0:03:00.9]} 1... c6 {[%clk 0:03:00.9]} 2. c4 {[%clk 0:03:00.4]}
2... g6 {[%clk 0:03:01.8]} 3. Nc3 {[%clk 0:02:58.7]} 3... Bg7 {[%clk 0:03:02.7]}
4. e4 {[%clk 0:02:52.5]} 4... d6 {[%clk 0:03:03.6]} 5. Be3 {[%clk 0:02:50.9]}
5... Nd7 {[%clk 0:03:02.5]} 6. Nf3 {[%clk 0:02:44.9]} 6... e5 {[%clk 0:03:02.9]}
7. d5 {[%clk 0:02:44.2]} 7... c5 {[%clk 0:03:01.6]} 8. g4 {[%clk 0:02:41.7]}
8... Ne7 {[%clk 0:03:01]} 9. Rg1 {[%clk 0:02:38.9]} 9... f6 {[%clk 0:02:52.7]}
10. h4 {[%clk 0:02:31.2]} 10... h5 {[%clk 0:02:52]} 11. g5 {[%clk 0:02:27.5]}
11... f5 {[%clk 0:02:29.6]} 12. Bd3 {[%clk 0:02:20.9]} 12... Nb6 {[%clk
0:02:22.4]} 13. Qc2 {[%clk 0:02:09.6]} 13... O-O {[%clk 0:02:21]} 14. b3 {[%clk
0:02:01.8]} 14... fxe4 {[%clk 0:02:17.9]} 15. Bxe4 {[%clk 0:02:01.3]} 15... Bf5
{[%clk 0:02:18.2]} 16. Nd2 {[%clk 0:01:55.4]} 16... Bxe4 {[%clk 0:02:18.1]} 17.
Ndxe4 {[%clk 0:01:49.9]} 17... Nf5 {[%clk 0:02:19]} 18. Rh1 {[%clk 0:01:44]}
18... a6 {[%clk 0:02:16.4]} 19. Ng3 {[%clk 0:01:29.7]} 19... Nc8 {[%clk
0:02:08]} 20. Nce4 {[%clk 0:01:23.1]} 20... Nce7 {[%clk 0:02:00.7]} 21. a3
{[%clk 0:01:11]} 21... b5 {[%clk 0:01:56.6]} 22. Ke2 {[%clk 0:01:05.9]} 22...
Qd7 {[%clk 0:01:53.3]} 23. a4 {[%clk 0:00:50]} 23... bxc4 {[%clk 0:01:40.9]} 24.
bxc4 {[%clk 0:00:49]} 24... Nxg3+ {[%clk 0:01:33.8]} 25. Nxg3 {[%clk 0:00:46.8]}
25... Qg4+ {[%clk 0:01:34.3]} 26. Kd2 {[%clk 0:00:45.7]} 26... Nf5 {[%clk
0:01:22]} 27. Nxf5 {[%clk 0:00:39.1]} 27... gxf5 {[%clk 0:01:14.9]} 28. Rhg1
{[%clk 0:00:34.4]} 28... Qh3 {[%clk 0:01:11.5]} 29. Rh1 {[%clk 0:00:20.7]} 29...
Qf3 {[%clk 0:01:10.5]} 30. Qd1 {[%clk 0:00:19.5]} 30... Qxd1+ {[%clk 0:01:04.4]}
31. Kxd1 {[%clk 0:00:18.9]} 31... Rab8 {[%clk 0:01:02.5]} 32. Kc2 {[%clk
0:00:18.2]} 32... f4 {[%clk 0:00:57.1]} 33. Bd2 {[%clk 0:00:17.6]} 33... e4
{[%clk 0:00:57.1]} 34. Rab1 {[%clk 0:00:17.7]} 34... Bd4 {[%clk 0:00:57.4]} 35.
Rxb8 {[%clk 0:00:15.9]} 35... Rxb8 {[%clk 0:00:58.3]} 36. Re1 {[%clk 0:00:13.7]}
36... Rb2+ {[%clk 0:00:54.4]} 37. Kc1 {[%clk 0:00:13.3]} 37... Ra2 {[%clk
0:00:53.5]} 38. Rxe4 {[%clk 0:00:13.1]} 38... f3 {[%clk 0:00:53.2]} 39. Rf4
{[%clk 0:00:10.9]} 39... Rxa4 {[%clk 0:00:50.7]} 40. Rxf3 {[%clk 0:00:10.6]}
40... Rxc4+ {[%clk 0:00:50.5]} 41. Kd1 {[%clk 0:00:11.2]} 41... Be5 {[%clk
0:00:50.8]} 42. Ra3 {[%clk 0:00:07.1]} 42... Rxh4 {[%clk 0:00:49.3]} 43. Rxa6
{[%clk 0:00:07.1]} 43... Rd4 {[%clk 0:00:49.2]} 44. Ke2 {[%clk 0:00:07.6]} 44...
Kf7 {[%clk 0:00:48.6]} 45. Ra3 {[%clk 0:00:06.1]} 45... Kg6 {[%clk 0:00:47.5]}
46. Rd3 {[%clk 0:00:06.2]} 46... Rxd3 {[%clk 0:00:46.3]} 47. Kxd3 {[%clk
0:00:06.2]} 47... h4 {[%clk 0:00:45.9]} 48. f4 {[%clk 0:00:05.3]} 48... h3
{[%clk 0:00:38.3]} 49. fxe5 {[%clk 0:00:02.8]} 49... h2 {[%clk 0:00:38.7]} 50.
exd6 {[%clk 0:00:02.5]} 50... h1=Q {[%clk 0:00:39.6]} 51. d7 {[%clk 0:00:02.5]}
51... Qxd5+ {[%clk 0:00:38.9]} 0-1

[Event "*** SCC Grand Prix: Titled Tuesday Blitz"]
[Site "Chess.com"]
[Date "2020.06.09"]
[Round "8"]
[White "kingofthenil"]
[Black "margarita_2703"]
[Result "1-0"]
[WhiteElo "2444"]
[BlackElo "2297"]
[TimeControl "180+1"]
[EndTime "10:35:49 PDT"]
[Termination "kingofthenil won by checkmate"]

1. d4 {[%clk 0:02:30]} 1... Nf6 {[%clk 0:02:57.9]} 2. c4 {[%clk 0:02:22.1]} 2...
e6 {[%clk 0:02:57.7]} 3. Nc3 {[%clk 0:02:21.2]} 3... d5 {[%clk 0:02:56.8]} 4. a3
{[%clk 0:02:22.1]} 4... c6 {[%clk 0:02:52.5]} 5. Nf3 {[%clk 0:02:19.2]} 5...
Nbd7 {[%clk 0:02:52.5]} 6. cxd5 {[%clk 0:02:13.8]} 6... exd5 {[%clk 0:02:48.8]}
7. Bf4 {[%clk 0:02:13.3]} 7... Be7 {[%clk 0:02:44.6]} 8. e3 {[%clk 0:01:58.7]}
8... Ne4 {[%clk 0:02:42.2]} 9. Bd3 {[%clk 0:01:58]} 9... Ndf6 {[%clk 0:02:39.6]}
10. O-O {[%clk 0:01:52.6]} 10... O-O {[%clk 0:02:39.2]} 11. Qc2 {[%clk
0:01:51.2]} 11... Re8 {[%clk 0:02:34]} 12. Ne5 {[%clk 0:01:42.7]} 12... Nxc3
{[%clk 0:02:23.4]} 13. bxc3 {[%clk 0:01:31.8]} 13... Bd6 {[%clk 0:02:21.3]} 14.
c4 {[%clk 0:01:29.9]} 14... h6 {[%clk 0:02:13.4]} 15. Rab1 {[%clk 0:01:24.6]}
15... Ne4 {[%clk 0:02:09.1]} 16. cxd5 {[%clk 0:01:09.6]} 16... cxd5 {[%clk
0:02:08.1]} 17. Rfc1 {[%clk 0:00:57.5]} 17... Bxa3 {[%clk 0:01:55.6]} 18. Bxe4
{[%clk 0:00:38.6]} 18... dxe4 {[%clk 0:01:51.1]} 19. Qb3 {[%clk 0:00:25.9]}
19... Rxe5 {[%clk 0:01:40.3]} 20. Bxe5 {[%clk 0:00:22.9]} 20... Bxc1 {[%clk
0:01:39.6]} 21. Rxc1 {[%clk 0:00:18.8]} 21... b6 {[%clk 0:01:31]} 22. Rc7 {[%clk
0:00:17.7]} 22... Be6 {[%clk 0:01:30.9]} 23. Qa4 {[%clk 0:00:14.6]} 23... a5
{[%clk 0:01:24.8]} 24. h3 {[%clk 0:00:14.9]} 24... Rc8 {[%clk 0:01:23.6]} 25.
Qc6 {[%clk 0:00:13.5]} 25... Rxc7 {[%clk 0:01:21.9]} 26. Bxc7 {[%clk 0:00:14]}
26... Qd7 {[%clk 0:01:18.4]} 27. Qxb6 {[%clk 0:00:10.5]} 27... a4 {[%clk
0:01:16.5]} 28. Bd6 {[%clk 0:00:06.1]} 28... Qc8 {[%clk 0:01:07.4]} 29. Bc5
{[%clk 0:00:06.2]} 29... Qa8 {[%clk 0:01:04.2]} 30. Qb2 {[%clk 0:00:04.1]} 30...
Qa5 {[%clk 0:01:01.4]} 31. Qa1 {[%clk 0:00:03.2]} 31... Bb3 {[%clk 0:00:55.2]}
32. Qc1 {[%clk 0:00:02.8]} 32... Qb5 {[%clk 0:00:51.2]} 33. Ba3 {[%clk
0:00:03.3]} 33... Qe2 {[%clk 0:00:50.6]} 34. Qc8+ {[%clk 0:00:02.6]} 34... Kh7
{[%clk 0:00:49.8]} 35. Qf5+ {[%clk 0:00:03.3]} 35... g6 {[%clk 0:00:48.2]} 36.
Qf6 {[%clk 0:00:01.8]} 36... Kg8 {[%clk 0:00:37.8]} 37. Kh2 {[%clk 0:00:01.5]}
37... Qh5 {[%clk 0:00:34.4]} 38. Qd8+ {[%clk 0:00:01.8]} 38... Kh7 {[%clk
0:00:32.6]} 39. Be7 {[%clk 0:00:01.4]} 39... f5 {[%clk 0:00:22.3]} 40. Qf8
{[%clk 0:00:01.9]} 40... g5 {[%clk 0:00:19]} 41. Bf6 {[%clk 0:00:02.4]} 41...
Kg6 {[%clk 0:00:17.2]} 42. Qg7# {[%clk 0:00:02.3]} 1-0